fUSD/lending_fUSD_20250606
["ID","MTS","AMOUNT","RATE_DAILY","PERIOD"]
[364803171,1749246642631,-480.0,0.00027397,5]
[364803173,1749246642640,-480.0,0.00027397,5]
[364803175,1749246642650,-480.0,0.00027397,5]
[364803176,1749246642659,-480.0,0.00027397,5]
[364803178,1749246642668,-480.0,0.00027397,5]
[364803180,1749246642678,-527.72962559,0.00027397,5]
[364803182,1749246642687,-480.0,0.00027397,5]
[364803184,1749246642697,-480.0,0.00027397,5]
[364803186,1749246642707,-480.0,0.00027397,5]
[364803188,1749246642716,-1024.72,0.00027397,5]
[364803190,1749246642726,-483.21197246,0.00027397,5]
[364803192,1749246642735,-807.19,0.00027397,5]
[364803194,1749246642744,-508.07,0.00027397,5]
[364803196,1749246642754,-393.18905018,0.00027397,5]
[364803198,1749246642763,-532.18,0.00027397,5]
[364803200,1749246642773,-464.42401485,0.00027397,5]
[364803202,1749246642782,-480.0,0.00027397,5]
[364803204,1749246642792,-480.0,0.00027397,5]
[364803206,1749246642802,-480.0,0.00027397,5]
[364803207,1749246642811,-480.0,0.00027397,5]
[364803209,1749246642820,-482.18690529,0.00027397,5]
[364803211,1749246642830,-480.0,0.00027397,5]
[364803213,1749246642839,-791.89,0.00027397,5]
[364803215,1749246642848,-720.13,0.00027397,5]
[364803217,1749246642858,-500.0,0.00027397,5]
[364803219,1749246642867,-392.66732608,0.00027397,5]
[364803221,1749246642877,-480.0,0.00027397,5]
[364803223,1749246642886,-480.0,0.00027397,5]
[364803225,1749246642895,-1109.46,0.00027397,5]
[364803227,1749246642905,-480.0,0.00027397,5]
[364803229,1749246642914,-480.0,0.00027397,5]
[364803230,1749246642923,-606.93062687,0.00027397,5]
[364803233,1749246642932,-480.0,0.00027397,5]
[364803236,1749246642942,-486.82,0.00027397,5]
[364803239,1749246642951,-480.0,0.00027397,5]
[364803242,1749246642961,-426.90771548,0.00027397,5]
[364803245,1749246642970,-435.17107617,0.00027397,5]
[364803248,1749246642980,-480.0,0.00027397,5]
[364803251,1749246642989,-480.0,0.00027397,5]
[364803254,1749246642998,-480.0,0.00027397,5]
[364803256,1749246643007,-491.55,0.00027397,5]
[364803259,1749246643017,-480.0,0.00027397,5]
[364803263,1749246643026,-480.0,0.00027397,5]
[364803266,1749246643035,-480.0,0.00027397,5]
[364803268,1749246643045,-480.0,0.00027397,5]
[364803270,1749246643054,-875.07,0.00027397,5]
[364803272,1749246643063,-1682.48,0.00027397,5]
[364803274,1749246643073,-485.33,0.00027397,5]
[364803276,1749246643082,-480.0,0.00027397,5]
[364803278,1749246643091,-480.0,0.00027397,5]
[364803280,1749246643101,-480.0,0.00027397,5]
[364803282,1749246643110,-480.0,0.00027397,5]
[364803284,1749246643119,-480.0,0.00027397,5]
[364803286,1749246643129,-480.0,0.00027397,5]
[364803288,1749246643138,-858.22,0.00027397,5]
[364803290,1749246643147,-480.0,0.00027397,5]
[364803291,1749246643156,-480.0,0.00027397,5]
[364803293,1749246643165,-518.73575585,0.00027397,5]
[364803295,1749246643173,-787.71,0.00027397,5]
[364803297,1749246643183,-480.0,0.00027397,5]
[364803299,1749246643192,-1346.81,0.00027397,5]
[364803301,1749246643201,-830.11,0.00027397,5]
[364803303,1749246643210,-480.0,0.00027397,5]
[364803305,1749246643219,-480.0,0.00027397,5]
[364803307,1749246643229,-951.1,0.00027397,5]
[364803309,1749246643238,-561.45497211,0.00027397,5]
[364803311,1749246643248,-480.0,0.00027397,5]
[364803313,1749246643257,-665.78,0.00027397,5]
[364803315,1749246643266,-546.00460795,0.00027397,5]
[364803317,1749246643275,-1000.0,0.00027397,5]
[364803319,1749246643284,-864.11,0.00027397,5]
[364803320,1749246643293,-480.0,0.00027397,5]
[364803322,1749246643303,-480.0,0.00027397,5]
[364803324,1749246643312,-480.0,0.00027397,5]
[364803326,1749246643321,-460.0,0.00027397,5]
[364803328,1749246643330,-412.29498911,0.00027397,5]
[364803330,1749246643340,-898.25,0.00027397,5]
[364803332,1749246643349,-480.0,0.00027397,5]
[364803334,1749246643357,-480.0,0.00027397,5]
[364803336,1749246643367,-1665.9,0.00027397,5]
[364803338,1749246643376,-480.0,0.00027397,5]
[364803340,1749246643386,-480.0,0.00027397,5]
[364803342,1749246643396,-480.0,0.00027397,5]
[364803344,1749246643405,-480.0,0.00027397,5]
[364803346,1749246643414,-922.04,0.00027397,5]
[364803348,1749246643424,-480.0,0.00027397,5]
[364803350,1749246643434,-480.0,0.00027397,5]
[364803352,1749246643443,-480.0,0.00027397,5]
[364803354,1749246643453,-507.1,0.00027397,5]
[364803356,1749246643462,-480.0,0.00027397,5]
[364803357,1749246643471,-428.89377785,0.00027397,5]
[364803360,1749246643480,-503.58,0.00027397,5]
[364803362,1749246643490,-480.0,0.00027397,5]
[364803363,1749246643499,-480.0,0.00027397,5]
[364803365,1749246643509,-480.0,0.00027397,5]
[364803367,1749246643520,-480.0,0.00027397,5]
[364803369,1749246643530,-480.0,0.00027397,5]
[364803373,1749246643541,-418.80468656,0.00027397,5]
[364803376,1749246643551,-480.0,0.00027397,5]
[364803378,1749246643561,-480.0,0.00027397,5]
[364803380,1749246643571,-480.0,0.00027397,5]
[364803382,1749246643583,-492.31792865,0.00027397,5]
[364803384,1749246643592,-480.0,0.00027397,5]
[364803386,1749246643602,-480.0,0.00027397,5]
[364803388,1749246643612,-480.0,0.00027397,5]
[364803390,1749246643623,-480.0,0.00027397,5]
[364803392,1749246643632,-484.38374052,0.00027397,5]
[364803394,1749246643642,-480.0,0.00027397,5]
[364803396,1749246643652,-413.98880786,0.00027397,5]
[364803398,1749246643662,-480.0,0.00027397,5]
[364803400,1749246643671,-496.7189745,0.00027397,5]
[364803402,1749246643681,-480.0,0.00027397,5]
[364803404,1749246643690,-480.0,0.00027397,5]
[364803406,1749246643700,-480.0,0.00027397,5]
[364803408,1749246643709,-857.71,0.00027397,5]
[364803410,1749246643718,-480.0,0.00027397,5]
[364803411,1749246643728,-480.0,0.00027397,5]
[364803413,1749246643737,-480.0,0.00027397,5]
[364803415,1749246643747,-294.04866304,0.00027397,5]
[364803417,1749246643757,-881.94,0.00027397,5]
[364803419,1749246643766,-361.02996678,0.00027397,5]
[364803421,1749246643775,-482.75906997,0.00027397,5]
[364803424,1749246643788,-480.0,0.00027397,5]
[364803426,1749246643797,-3871.62,0.00027397,5]
[364803428,1749246643807,-480.0,0.00027397,5]
[364803430,1749246643816,-1276.99,0.00027397,5]
[364803431,1749246643825,-700.22,0.00027397,5]
[364803434,1749246643835,-961.98,0.00027397,5]
[364803435,1749246643844,-492.47177423,0.00027397,5]
[364803437,1749246643854,-480.0,0.00027397,5]
[364803439,1749246643863,-485.10186756,0.00027397,5]
[364803440,1749246643872,-800.25,0.00027397,5]
[364803442,1749246643881,-2314.74,0.00027397,5]
[364803444,1749246643891,-480.0,0.00027397,5]
[364803446,1749246643900,-491.92044498,0.00027397,5]
[364803448,1749246643909,-2288.89,0.00027397,5]
[364803449,1749246643918,-6306.05,0.00027397,5]
[364803451,1749246643928,-480.0,0.00027397,5]
[364803453,1749246643937,-460.0,0.00027397,5]
[364803455,1749246643947,-339.40009498,0.00027397,5]
[364803457,1749246643956,-251.759631,0.00027397,5]
[364803459,1749246643966,-251.759631,0.00027397,5]
[364803461,1749246643975,-251.759631,0.00027397,5]
[364803463,1749246643984,-991.79,0.00027397,5]
[364803465,1749246643994,-251.759631,0.00027397,5]
[364803467,1749246644003,-251.759631,0.00027397,5]
[364803469,1749246644013,-251.759631,0.00027397,5]
[364803470,1749246644022,-170.34938031,0.00027397,5]
[364803472,1749246644031,-480.0,0.00027397,5]
[364803474,1749246644042,-480.0,0.00027397,5]
[364803476,1749246644052,-480.0,0.00027397,5]
[364803478,1749246644061,-3309.41,0.00027397,5]
[364803480,1749246644070,-480.0,0.00027397,5]
[364803482,1749246644079,-6270.48,0.00027397,5]
[364803484,1749246644089,-501.5244694,0.00027397,5]
[364803486,1749246644098,-480.0,0.00027397,5]
[364803488,1749246644107,-658.77,0.00027397,5]
[364803490,1749246644118,-1547.23,0.00027397,5]
[364803492,1749246644127,-480.0,0.00027397,5]
[364803493,1749246644137,-480.0,0.00027397,5]
[364803495,1749246644146,-480.0,0.00027397,5]
[364803497,1749246644155,-656.6,0.00027397,5]
[364803499,1749246644165,-480.0,0.00027397,5]
[364803501,1749246644175,-678.5,0.00027397,5]
[364803503,1749246644184,-697.1,0.00027397,5]
[364803505,1749246644193,-3290.58,0.00027397,5]
[364803507,1749246644202,-480.0,0.00027397,5]
[364803509,1749246644212,-480.0,0.00027397,5]
[364803511,1749246644221,-480.0,0.00027397,5]
[364803513,1749246644230,-480.0,0.00027397,5]
[364803515,1749246644240,-41825.2,0.00027397,5]
[364803516,1749246644249,-4175.73,0.00027397,5]
[364803518,1749246644259,-757.81,0.00027397,5]
[364803520,1749246644268,-827.83,0.00027397,5]
[364803522,1749246644278,-248.51935007,0.00027397,5]
[364803524,1749246644288,-1000.0,0.00027397,5]
[364803526,1749246644299,-486.05339023,0.00027397,5]
[364803528,1749246644308,-480.0,0.00027397,5]
[364803530,1749246644317,-2642.31,0.00027397,5]
[364803532,1749246644327,-480.0,0.00027397,5]
[364803534,1749246644336,-221.5068644,0.00027397,5]
[364803536,1749246644345,-494.1,0.00027397,5]
[364803538,1749246644354,-480.0,0.00027397,5]
[364803540,1749246644364,-480.0,0.00027397,5]
[364803541,1749246644373,-1402.22,0.00027397,5]
[364803543,1749246644383,-522.45176201,0.00027397,5]
[364803545,1749246644392,-593.19,0.00027397,5]
[364803547,1749246644401,-480.0,0.00027397,5]
[364803549,1749246644410,-548.04,0.00027397,5]
[364803551,1749246644420,-915.82,0.00027397,5]
[364803553,1749246644429,-480.0,0.00027397,5]
[364803555,1749246644438,-422.24263036,0.00027397,5]
[364803557,1749246644448,-415.97566595,0.00027397,5]
[364803559,1749246644458,-7246.33,0.00027397,5]
[364803560,1749246644467,-1038.48,0.00027397,5]
[364803562,1749246644476,-480.0,0.00027397,5]
[364803564,1749246644486,-1012.51,0.00027397,5]
[364803566,1749246644495,-480.0,0.00027397,5]
[364803568,1749246644504,-480.0,0.00027397,5]
[364803570,1749246644515,-480.0,0.00027397,5]
[364803572,1749246644524,-1063.91,0.00027397,5]
[364803574,1749246644534,-480.0,0.00027397,5]
[364803576,1749246644543,-1000.0,0.00027397,2]
[364803578,1749246644553,-485.37750756,0.00027397,5]
[364803579,1749246644563,-2287.44,0.00027397,5]
[364803581,1749246644574,-480.0,0.00027397,5]
[364803582,1749246644584,-480.0,0.00027397,5]
[364803583,1749246644594,-1253.57,0.00027397,5]
[364803584,1749246644603,-480.0,0.00027397,5]
[364803585,1749246644612,-480.0,0.00027397,5]
[364803586,1749246644622,-480.0,0.00027397,5]
[364803587,1749246644631,-543.96,0.00027397,5]
[364803588,1749246644641,-483.18040379,0.00027397,5]
[364803589,1749246644651,-888.06,0.00027397,5]
[364803590,1749246644660,-480.0,0.00027397,5]
[364803591,1749246644671,-480.0,0.00027397,5]
[364803592,1749246644680,-480.0,0.00027397,5]
[364803594,1749246644690,-706.17,0.00027397,5]
[364803596,1749246644699,-480.0,0.00027397,5]
[364803598,1749246644708,-480.0,0.00027397,5]
[364803600,1749246644717,-493.41407649,0.00027397,5]
[364803602,1749246644727,-2321.6,0.00027397,5]
[364803604,1749246644736,-1717.97,0.00027397,5]
[364803606,1749246644745,-480.0,0.00027397,5]
[364803608,1749246644755,-480.0,0.00027397,5]
[364803610,1749246644764,-480.0,0.00027397,5]
[364803612,1749246644773,-484.51187732,0.00027397,5]
[364803614,1749246644782,-9864.62,0.00027397,5]
[364803616,1749246644792,-480.0,0.00027397,5]
[364803618,1749246644801,-480.0,0.00027397,5]
[364803620,1749246644810,-480.0,0.00027397,5]
[364803622,1749246644819,-480.0,0.00027397,5]
[364803624,1749246644828,-480.0,0.00027397,5]
[364803626,1749246644838,-404.98680034,0.00027397,5]
[364803628,1749246644847,-480.0,0.00027397,5]
[364803630,1749246644856,-480.0,0.00027397,2]
[364803632,1749246644865,-480.0,0.00027397,5]
[364803633,1749246644874,-480.0,0.00027397,5]
[364803635,1749246644883,-915.9,0.00027397,5]
[364803637,1749246644893,-1064.72,0.00027397,5]
[364803640,1749246644903,-1463.3,0.00027397,5]
[364803641,1749246644912,-480.0,0.00027397,5]
[364803643,1749246644921,-480.0,0.00027397,5]
[364803646,1749246644930,-480.0,0.00027397,5]
[364803647,1749246644939,-2703.77,0.00027397,5]
[364803649,1749246644949,-480.0,0.00027397,5]
[364803651,1749246644959,-480.0,0.00027397,5]
[364803653,1749246644968,-497.24578645,0.00027397,5]
[364803656,1749246644977,-480.0,0.00027397,5]
[364803658,1749246644987,-480.0,0.00027397,5]
[364803660,1749246644997,-480.0,0.00027397,5]
[364803662,1749246645006,-1053.29,0.00027397,5]
[364803663,1749246645015,-1379.5,0.00027397,5]
[364803665,1749246645024,-480.0,0.00027397,5]
[364803667,1749246645034,-724.32,0.00027397,5]
[364803670,1749246645043,-2062.4,0.00027397,5]
[364803672,1749246645053,-480.0,0.00027397,5]
[364803674,1749246645062,-1152.25,0.00027397,5]
[364803676,1749246645071,-480.71996608,0.00027397,5]
[364803678,1749246645080,-480.0,0.00027397,5]
[364803680,1749246645089,-480.0,0.00027397,5]
[364803682,1749246645098,-480.0,0.00027397,5]
[364803684,1749246645107,-511.1,0.00027397,5]
[364803686,1749246645116,-480.0,0.00027397,5]
[364803688,1749246645125,-2113.21,0.00027397,5]
[364803690,1749246645134,-950.72,0.00027397,5]
[364803692,1749246645144,-480.0,0.00027397,5]
[364803694,1749246645154,-480.0,0.00027397,5]
[364803696,1749246645163,-1038.72,0.00027397,5]
[364803698,1749246645172,-480.0,0.00027397,5]
[364803700,1749246645181,-545.76,0.00027397,5]
[364803702,1749246645190,-480.0,0.00027397,5]
[364803704,1749246645199,-682.89,0.00027397,5]
[364803706,1749246645208,-2532.67,0.00027397,5]
[364803708,1749246645217,-480.0,0.00027397,5]
[364803710,1749246645226,-480.0,0.00027397,5]
[364803712,1749246645235,-481.55726094,0.00027397,5]
[364803714,1749246645244,-3584.03,0.00027397,5]
[364803716,1749246645253,-480.0,0.00027397,5]
[364803718,1749246645262,-383.41112128,0.00027397,5]
[364803720,1749246645271,-528.47,0.00027397,5]
[364803721,1749246645280,-548.2,0.00027397,5]
[364803723,1749246645289,-480.0,0.00027397,5]
[364803725,1749246645299,-480.0,0.00027397,5]
[364803728,1749246645308,-480.0,0.00027397,5]
[364803730,1749246645317,-480.0,0.00027397,5]
[364803733,1749246645326,-720.56,0.00027397,5]
[364803736,1749246645335,-961.24,0.00027397,5]
[364803738,1749246645345,-480.0,0.00027397,5]
[364803740,1749246645354,-480.0,0.00027397,5]
[364803742,1749246645363,-480.0,0.00027397,5]
[364803744,1749246645372,-480.0,0.00027397,5]
[364803746,1749246645381,-948.47,0.00027397,5]
[364803749,1749246645390,-480.0,0.00027397,5]
[364803751,1749246645400,-480.0,0.00027397,5]
[364803753,1749246645409,-480.0,0.00027397,5]
[364803755,1749246645418,-1184.48,0.00027397,5]
[364803757,1749246645429,-618.38,0.00027397,5]
[364803760,1749246645438,-480.0,0.00027397,5]
[364803761,1749246645448,-480.0,0.00027397,5]
[364803763,1749246645457,-480.0,0.00027397,5]
[364803766,1749246645466,-500.0,0.00027397,2]
[364803767,1749246645476,-500.0,0.00027397,2]
[364803769,1749246645486,-486.02065922,0.00027397,5]
[364803771,1749246645496,-500.0,0.00027397,2]
[364803773,1749246645505,-480.0,0.00027397,5]
[364803776,1749246645515,-500.0,0.00027397,2]
[364803777,1749246645524,-500.0,0.00027397,2]
[364803780,1749246645534,-480.0,0.00027397,5]
[364803781,1749246645543,-729.47,0.00027397,5]
[364803783,1749246645552,-502.36948059,0.00027397,5]
[364803785,1749246645562,-480.0,0.00027397,5]
[364803787,1749246645572,-2291.9,0.00027397,5]
[364803789,1749246645584,-480.0,0.00027397,5]
[364803791,1749246645593,-480.0,0.00027397,5]
[364803794,1749246645603,-558.53,0.00027397,5]
[364803796,1749246645820,-480.0,0.00027397,5]
[364803798,1749246645829,-481.2423928,0.00027397,5]
[364803800,1749246645839,-489.29238845,0.00027397,5]
[364803801,1749246645848,-190.600033,0.00027397,5]
[364803803,1749246645857,-299.15881782,0.00027397,5]
[364803805,1749246645866,-480.0,0.00027397,5]
[364803808,1749246645876,-480.0,0.00027397,5]
[364803810,1749246645885,-480.0,0.00027397,5]
[364803812,1749246645896,-480.0,0.00027397,5]
[364803814,1749246645905,-480.0,0.00027397,5]
[364803816,1749246645916,-1173.51,0.00027397,5]
[364803818,1749246645925,-1217.86,0.00027397,5]
[364803820,1749246645935,-480.0,0.00027397,5]
[364803822,1749246645944,-500.0,0.00027397,5]
[364803824,1749246645953,-500.0,0.00027397,5]
[364803826,1749246645963,-661.15,0.00027397,5]
[364803828,1749246645972,-487.19512927,0.00027397,5]
[364803830,1749246645981,-2825.65,0.00027397,5]
[364803832,1749246645990,-782.79,0.00027397,5]
[364803834,1749246645999,-480.0,0.00027397,5]
[364803836,1749246646009,-484.01917455,0.00027397,5]
[364803838,1749246646018,-480.0,0.00027397,5]
[364803840,1749246646027,-480.0,0.00027397,5]
[364803842,1749246646036,-480.0,0.00027397,5]
[364803844,1749246646045,-866.52,0.00027397,5]
[364803846,1749246646054,-480.0,0.00027397,5]
[364803848,1749246646064,-978.55,0.00027397,5]
[364803850,1749246646073,-480.0,0.00027397,5]
[364803852,1749246646082,-480.0,0.00027397,5]
[364803854,1749246646091,-480.0,0.00027397,5]
[364803856,1749246646100,-480.0,0.00027397,5]
[364803859,1749246646109,-486.25828105,0.00027397,5]
[364803884,1749246646121,-480.0,0.00027397,5]
[364803886,1749246646343,-480.0,0.00027397,5]
[364803889,1749246646353,-480.0,0.00027397,5]
[364803891,1749246646362,-480.0,0.00027397,5]
[364803892,1749246646371,-480.0,0.00027397,5]
[364803895,1749246646381,-439.98438175,0.00027397,5]
[364803897,1749246646390,-3108.49,0.00027397,5]
[364803899,1749246646399,-480.0,0.00027397,5]
[364803900,1749246646408,-480.0,0.00027397,5]
[364803903,1749246646418,-1300.77,0.00027397,5]
[364803905,1749246646427,-480.0,0.00027397,5]
[364803907,1749246646436,-480.0,0.00027397,5]
[364803909,1749246646446,-2680.22,0.00027397,5]
[364803910,1749246646455,-480.0,0.00027397,5]
[364803913,1749246646465,-480.0,0.00027397,5]
[364803915,1749246646474,-480.0,0.00027397,5]
[364803917,1749246646484,-480.0,0.00027397,5]
[364803918,1749246646493,-1437.98,0.00027397,5]
[364803920,1749246646503,-480.0,0.00027397,5]
[364803922,1749246646512,-529.15512062,0.00027397,5]
[364803924,1749246646522,-480.0,0.00027397,5]
[364803927,1749246646532,-519.51,0.00027397,5]
[364803929,1749246646543,-480.0,0.00027397,5]
[364803931,1749246646553,-480.0,0.00027397,5]
[364803933,1749246646562,-509.64,0.00027397,5]
[364803935,1749246646573,-480.0,0.00027397,5]
[364803937,1749246646585,-480.0,0.00027397,5]
[364803939,1749246646594,-9520.94,0.00027397,5]
[364803941,1749246646603,-480.0,0.00027397,5]
[364803943,1749246646613,-485.40579763,0.00027397,5]
[364803945,1749246646623,-480.0,0.00027397,5]
[364803947,1749246646632,-480.0,0.00027397,5]
[364803949,1749246646641,-480.0,0.00027397,5]
[364803951,1749246646651,-362.87284148,0.00027397,5]
[364803953,1749246646660,-480.0,0.00027397,5]
[364803955,1749246646670,-480.0,0.00027397,5]
[364803957,1749246646680,-480.0,0.00027397,5]
[364803959,1749246646689,-1288.3,0.00027397,5]
[364803961,1749246646698,-1532.11,0.00027397,5]
[364803963,1749246646708,-480.0,0.00027397,5]
[364803965,1749246646718,-539.78,0.00027397,5]
[364803967,1749246646727,-480.0,0.00027397,5]
[364803969,1749246646738,-499.91072532,0.00027397,5]
[364803971,1749246646747,-480.0,0.00027397,5]
[364803973,1749246646756,-484.28061092,0.00027397,5]
[364803975,1749246646765,-1411.14,0.00027397,5]
[364803977,1749246646775,-480.0,0.00027397,5]
[364803979,1749246646786,-1226.65,0.00027397,5]
[364803981,1749246646795,-480.0,0.00027397,5]
[364803983,1749246646804,-480.0,0.00027397,5]
[364803985,1749246646813,-480.0,0.00027397,5]
[364803987,1749246646823,-11376.28,0.00027397,5]
[364803989,1749246646832,-480.0,0.00027397,5]
[364803990,1749246646841,-745.67,0.00027397,5]
[364803993,1749246646851,-480.0,0.00027397,5]
[364803994,1749246646860,-480.0,0.00027397,5]
[364803996,1749246646869,-494.9345283,0.00027397,5]
[364803999,1749246646879,-480.0,0.00027397,5]
[364804001,1749246646888,-496.10760876,0.00027397,5]
[364804003,1749246646897,-1096.92,0.00027397,5]
[364804005,1749246646908,-480.0,0.00027397,5]
[364804007,1749246646918,-480.0,0.00027397,5]
[364804009,1749246646927,-480.0,0.00027397,5]
[364804010,1749246646936,-1261.97,0.00027397,5]
[364804013,1749246646945,-480.0,0.00027397,5]
[364804015,1749246646954,-1625.92,0.00027397,5]
[364804017,1749246646963,-480.0,0.00027397,5]
[364804019,1749246646973,-480.0,0.00027397,5]
[364804021,1749246646983,-550.84,0.00027397,5]
[364804023,1749246646992,-483.94,0.00027397,5]
[364804025,1749246647002,-5339.23,0.00027397,5]
[364804026,1749246647011,-1348.87,0.00027397,5]
[364804028,1749246647020,-489.87,0.00027397,5]
[364804031,1749246647030,-340.484986,0.00027397,5]
[364804033,1749246647039,-351.15608023,0.00027397,5]
[364804035,1749246647049,-828.64,0.00027397,5]
[364804037,1749246647058,-480.0,0.00027397,5]
[364804038,1749246647067,-480.0,0.00027397,5]
[364804041,1749246647077,-480.0,0.00027397,5]
[364804042,1749246647086,-1697.96,0.00027397,5]
[364804043,1749246647095,-480.0,0.00027397,5]
[364804044,1749246647105,-1051.18,0.00027397,5]
[364804045,1749246647114,-1189.86,0.00027397,5]
[364804046,1749246647123,-480.0,0.00027397,2]
[364804047,1749246647133,-549.18638581,0.00027397,5]
[364804048,1749246647143,-633.51,0.00027397,5]
[364804049,1749246647152,-480.0,0.00027397,5]
[364804050,1749246647162,-480.0,0.00027397,5]
[364804051,1749246647171,-480.0,0.00027397,5]
[364804053,1749246647181,-480.0,0.00027397,5]
[364804055,1749246647191,-416.51988831,0.00027397,5]
[364804057,1749246647201,-2333.6,0.00027397,5]
[364804059,1749246647211,-480.0,0.00027397,2]
[364804061,1749246647220,-551.67,0.00027397,5]
[364804063,1749246647229,-765.3,0.00027397,5]
[364804065,1749246647239,-616.72,0.00027397,5]
[364804067,1749246647248,-481.7728298,0.00027397,5]
[364804069,1749246647258,-1044.17,0.00027397,5]
[364804071,1749246647267,-2754.5,0.00027397,5]
[364804074,1749246647276,-480.0,0.00027397,5]
[364804075,1749246647285,-1846.24,0.00027397,5]
[364804078,1749246647295,-480.0,0.00027397,5]
[364804079,1749246647304,-1431.03,0.00027397,5]
[364804081,1749246647314,-1138.5,0.00027397,5]
[364804083,1749246647323,-480.0,0.00027397,5]
[364804085,1749246647332,-480.0,0.00027397,5]
[364804087,1749246647342,-480.0,0.00027397,5]
[364804089,1749246647351,-480.0,0.00027397,5]
[364804091,1749246647360,-480.0,0.00027397,5]
[364804093,1749246647370,-2643.55,0.00027397,2]
[364804095,1749246647379,-155.67,0.00027397,2]
[364804098,1749246647389,-300.0,0.00027397,2]
[364804100,1749246647399,-500.0,0.00027399,2]
[364804102,1749246647408,-500.0,0.00027399,2]
[364804103,1749246647418,-153.0,0.00027399,2]
[364804105,1749246647428,-500.0,0.00027399,2]
[364804108,1749246647437,-500.0,0.00027399,2]
[364804110,1749246647447,-496.87334131,0.00027399,2]
[364804112,1749246647456,-500.0,0.00027399,2]
[364804113,1749246647466,-500.0,0.00027399,2]
[364804116,1749246647475,-500.0,0.00027399,2]
[364804117,1749246647485,-500.0,0.00027399,2]
[364804119,1749246647495,-500.0,0.00027399,2]
[364804121,1749246647505,-500.0,0.00027399,2]
[364804124,1749246647518,-500.0,0.00027399,2]
[364804126,1749246647528,-500.0,0.00027399,2]
[364804128,1749246647538,-366.3863196,0.00027399,2]
[364804130,1749246647548,-500.0,0.00027399,2]
[364804132,1749246647557,-500.0,0.00027399,2]
[364804134,1749246647567,-624.47830544,0.00027399,2]
[364804136,1749246647582,-500.0,0.00027399,2]
[364804138,1749246647591,-500.0,0.00027399,2]
[364804140,1749246647601,-500.0,0.00027399,2]
[364804142,1749246647610,-500.0,0.00027399,2]
[364804144,1749246647621,-500.0,0.00027399,2]
[364804146,1749246647631,-500.0,0.00027399,2]
[364804148,1749246647640,-500.0,0.00027399,2]
[364804150,1749246647649,-500.0,0.00027399,2]
[364804152,1749246647659,-500.0,0.00027399,2]
[364804154,1749246647668,-500.0,0.00027399,2]
[364804156,1749246647677,-500.0,0.00027399,2]
[364804158,1749246647687,-500.0,0.00027399,2]
[364804160,1749246647696,-180.91454213,0.00027399,2]
[364804162,1749246647705,-500.0,0.00027399,2]
[364804164,1749246647716,-500.0,0.00027399,2]
[364804166,1749246647726,-500.0,0.00027399,2]
[364804168,1749246647736,-500.0,0.00027399,2]
[364804170,1749246647745,-500.0,0.00027399,2]
[364804172,1749246647755,-500.0,0.00027399,2]
[364804174,1749246647764,-500.0,0.00027399,2]
[364804176,1749246647773,-500.0,0.00027399,2]
[364804178,1749246647782,-500.0,0.00027399,2]